bitfinex/quotes_BTCUSD_20240828
["timestamp","ask_amount","ask_price","bid_price","bid_amount"]
[1724838008882,1e-08,59599.0,59598.0,1.72729959]
[1724838009722,1e-08,59599.0,59598.0,1.74129959]
[1724838009931,1e-08,59599.0,59598.0,2.07688059]
[1724838010323,1e-08,59599.0,59598.0,2.09088059]
[1724838010683,0.10021001,59622.0,59608.0,0.005]
[1724838010897,0.10021001,59622.0,59619.0,0.62037959]
[1724838011132,0.10021001,59622.0,59619.0,1.72676859]
[1724838011332,0.10021001,59622.0,59619.0,1.39130559]
[1724838012980,0.10021001,59622.0,59619.0,1.72676859]
[1724838013191,0.10021001,59622.0,59619.0,1.74076859]
[1724838013345,0.10021001,59622.0,59619.0,1.40530559]
[1724838013777,0.10021001,59622.0,59619.0,1.41930559]
[1724838014150,0.10021001,59622.0,59619.0,1.30212]
[1724838014578,0.10021001,59622.0,59619.0,1.637583]
[1724838015043,0.10021001,59622.0,59619.0,1.30212]
[1724838015226,0.10021001,59622.0,59619.0,1.65288666]
[1724838015447,0.0344801,59620.0,59619.0,1.65288666]
[1724838016036,0.00818,59620.0,59619.0,1.65288666]
[1724838016880,0.00818,59620.0,59619.0,1.31742366]
[1724838017538,0.00818,59620.0,59619.0,1.65288666]
[1724838017780,0.00818,59620.0,59619.0,1.30212]
[1724838018431,0.00818,59620.0,59619.0,1.637583]
[1724838018681,0.00818,59620.0,59619.0,1.30212]
[1724838020935,0.03447876,59620.0,59619.0,1.30212]
[1724838022557,0.03447876,59620.0,59619.0,1.92978205]
[1724838022764,0.03447876,59620.0,59619.0,1.97935024]
[1724838022973,0.03447876,59620.0,59619.0,2.00413433]
[1724838023307,1e-08,59625.0,59624.0,1.509457]
[1724838023449,1e-08,59625.0,59624.0,1.609457]
[1724838024411,1e-08,59625.0,59624.0,1.619457]
[1724838026389,0.09490001,59625.0,59624.0,1.631457]
[1724838027104,0.09490001,59625.0,59624.0,1.609457]
[1724838027452,0.09490001,59625.0,59624.0,1.637457]
[1724838027854,0.12119711,59625.0,59624.0,1.637457]
[1724838029755,0.12119711,59625.0,59624.0,1.302022]
[1724838029955,0.19909711,59625.0,59624.0,1.302022]
[1724838030382,0.36681111,59625.0,59624.0,0.028]
[1724838030580,0.70224011,59625.0,59624.0,0.028]
[1724838030884,1.04551068,59625.0,59624.0,0.028]
[1724838031366,1.04551068,59625.0,59624.0,0.014]
[1724838031786,0.03413868,59625.0,59624.0,0.181717]
[1724838031997,0.20223868,59625.0,59624.0,0.503152]
[1724838032203,0.20223868,59625.0,59624.0,0.509152]
[1724838032616,0.20223868,59625.0,59624.0,0.507152]
[1724838032767,0.20223868,59625.0,59624.0,0.513152]
[1724838032943,0.20223868,59625.0,59624.0,0.613152]
[1724838033146,0.20223868,59625.0,59624.0,1.274022]
[1724838033374,0.20223868,59625.0,59624.0,0.948587]
[1724838033591,0.20223868,59625.0,59624.0,1.284022]
[1724838033816,0.19439711,59625.0,59624.0,1.284022]
[1724838034175,0.19439711,59625.0,59624.0,1.40889108]
[1724838034663,0.19521511,59625.0,59624.0,1.40089108]
[1724838035085,0.02711511,59625.0,59624.0,1.40089108]
[1724838035612,0.02711511,59625.0,59624.0,1.39089108]
[1724838035786,0.02711511,59625.0,59624.0,1.40189108]
[1724838036001,0.02711511,59625.0,59624.0,1.41289108]
[1724838036125,0.02711511,59625.0,59624.0,1.40189108]
[1724838036549,0.02711511,59625.0,59624.0,1.41489108]
[1724838043106,0.02711511,59625.0,59624.0,1.85472608]
[1724838043413,0.02711511,59625.0,59624.0,1.75032608]
[1724838044445,0.02711511,59625.0,59624.0,1.41489108]
[1724838046116,0.02711511,59625.0,59624.0,1.75032608]
[1724838046319,0.02711511,59625.0,59624.0,1.41489108]
[1724838047142,0.02711511,59625.0,59624.0,1.41578978]
[1724838056785,0.02711511,59625.0,59624.0,1.93752478]
[1724838058136,0.02711511,59625.0,59624.0,2.30966914]
[1724838058629,0.02711511,59625.0,59624.0,1.92652478]
[1724838058847,0.02711511,59625.0,59624.0,2.29966915]
[1724838059085,0.05,59629.0,59624.0,2.29966915]
[1724838059086,1e-06,59627.0,59626.0,1.932632]
[1724838059311,0.05818,59631.0,59630.0,0.609701]
[1724838059543,0.05818,59631.0,59630.0,2.24437745]
[1724838059775,0.05818,59631.0,59630.0,2.64611845]
[1724838060459,0.05818,59631.0,59630.0,2.68011457]
[1724838060906,0.05818,59631.0,59630.0,2.68011821]
[1724838061183,0.05818,59631.0,59630.0,2.66011845]
[1724838061793,0.05818,59631.0,59630.0,2.6801201]
[1724838061999,0.05818,59631.0,59630.0,2.6600557]
[1724838062360,0.05818,59631.0,59630.0,2.6460557]
[1724838062567,0.05818,59631.0,59630.0,2.17978562]
[1724838062802,0.15668,59631.0,59630.0,0.94128399]
[1724838063022,0.15668,59631.0,59630.0,0.503101]
[1724838063023,0.24503668,59631.0,59630.0,0.503101]
[1724838063178,0.24503668,59631.0,59630.0,0.838502]
[1724838063381,0.24503668,59631.0,59630.0,0.866502]
[1724838063701,0.27132874,59631.0,59630.0,0.517101]
[1724838064053,0.27132874,59631.0,59630.0,0.503101]
[1724838064263,0.27132874,59631.0,59630.0,0.522101]
[1724838065059,0.27132874,59631.0,59630.0,0.622101]
[1724838065640,0.27132874,59631.0,59630.0,0.617101]
[1724838065840,0.27132874,59631.0,59630.0,0.623101]
[1724838066042,0.27132874,59631.0,59630.0,0.609101]
[1724838066249,0.27132874,59631.0,59630.0,0.617101]
[1724838066449,0.27132874,59631.0,59630.0,0.2757]
[1724838066655,0.27132874,59631.0,59630.0,0.2737]
[1724838066848,0.27132874,59631.0,59630.0,0.2817]
[1724838067374,0.27132874,59631.0,59630.0,0.603101]
[1724838068278,0.27132874,59631.0,59630.0,0.609101]
[1724838068764,0.27132874,59631.0,59630.0,0.617101]
[1724838068978,0.27132874,59631.0,59630.0,0.609101]
[1724838069196,0.27132874,59631.0,59630.0,0.953502]
[1724838069401,0.27132874,59631.0,59630.0,0.947502]
[1724838069812,0.27132874,59631.0,59630.0,0.954502]
[1724838070037,0.27132874,59631.0,59630.0,1.289903]
[1724838070438,0.27132874,59631.0,59630.0,1.33978785]
[1724838070661,0.09232874,59631.0,59630.0,1.33978785]
[1724838070995,0.09232874,59631.0,59630.0,1.289903]
[1724838072441,0.09232874,59631.0,59630.0,0.954502]
[1724838072954,0.09232874,59631.0,59630.0,1.289903]
[1724838073170,0.09232874,59631.0,59630.0,0.954502]
[1724838074090,0.09232874,59631.0,59630.0,1.289903]
[1724838074493,0.09232874,59631.0,59630.0,0.954502]
[1724838075652,0.27792874,59631.0,59630.0,0.619101]
[1724838076350,0.27792874,59631.0,59630.0,0.2837]
[1724838076727,0.27792874,59631.0,59630.0,0.619101]
[1724838077542,0.27792874,59631.0,59630.0,0.451401]
[1724838077807,0.27792874,59631.0,59630.0,0.116]
[1724838078111,0.27792874,59631.0,59630.0,0.016]
[1724838078317,0.44562674,59631.0,59630.0,0.016]
[1724838078654,0.78102274,59631.0,59630.0,0.016]
[1724838078854,0.44562674,59631.0,59630.0,0.016]
[1724838080274,1.11641874,59631.0,59630.0,0.016]
[1724838081044,0.78102274,59631.0,59630.0,0.016]
[1724838081376,1.11641874,59631.0,59630.0,0.016]
[1724838081733,1.27750886,59631.0,59630.0,0.016]
[1724838081883,0.848502,59630.0,59629.0,0.0008998]
[1724838082072,1.041802,59630.0,59629.0,0.0008998]
[1724838082299,1.40803178,59630.0,59629.0,0.0008998]
[1724838083325,1.40803178,59630.0,59629.0,0.0018998]
[1724838083708,1.57658342,59630.0,59629.0,0.0018998]
[1724838084149,1.40803178,59630.0,59629.0,0.0018998]
[1724838084554,1.41603178,59630.0,59629.0,0.0028998]
[1724838084746,1.41603178,59630.0,59629.0,0.0018998]
[1724838085195,1.43003178,59630.0,59629.0,0.0028998]
[1724838086652,1.54190985,59630.0,59629.0,0.0028998]
[1724838088195,0.01,59625.0,59600.0,0.1001]
[1724838088390,0.35800685,59630.0,59606.0,0.0008998]
[1724838088391,0.1057,59607.0,59606.0,0.0008998]
[1724838088590,0.273465,59607.0,59606.0,0.0008998]
[1724838088911,1.06176104,59607.0,59606.0,0.0008998]
[1724838089146,1.18078506,59607.0,59606.0,0.0008998]
[1724838089298,1.06176104,59607.0,59606.0,0.0008998]
[1724838089472,1.39729204,59607.0,59606.0,0.0008998]
[1724838089676,1.39829204,59607.0,59606.0,0.0018998]
[1724838090316,1.40829204,59607.0,59606.0,0.0018998]
[1724838090930,1.40729204,59607.0,59606.0,0.0008998]
[1724838091296,1.57784368,59607.0,59606.0,0.0018998]
[1724838091487,1.58784368,59607.0,59606.0,0.0018998]
[1724838091748,1.41729204,59607.0,59606.0,0.0018998]
[1724838091947,1.41729204,59607.0,59606.0,0.0008998]
[1724838091948,1.41629204,59607.0,59606.0,0.0008998]
[1724838092058,1.42729204,59607.0,59606.0,0.0008998]
[1724838092273,1.41829204,59607.0,59606.0,0.0008998]
[1724838092489,1.42629204,59607.0,59606.0,0.0008998]
[1724838092723,1.58684368,59607.0,59606.0,0.0008998]
[1724838093384,1.57584368,59607.0,59606.0,0.0008998]
[1724838093796,1.58484368,59607.0,59606.0,0.0008998]
[1724838094203,1.59484368,59607.0,59606.0,0.0008998]
[1724838094403,1.58584368,59607.0,59606.0,0.0008998]
[1724838094612,1.57584368,59607.0,59606.0,0.0008998]
[1724838094837,1.58884368,59607.0,59606.0,0.0008998]
[1724838095035,1.92437468,59607.0,59606.0,0.0008998]
[1724838095329,1.91137468,59607.0,59606.0,0.0008998]
[1724838095506,1.92237468,59607.0,59606.0,0.0008998]
[1724838095906,1.91137468,59607.0,59606.0,0.0008998]
[1724838096069,1.92437468,59607.0,59606.0,0.0008998]
[1724838096643,1.08876104,59607.0,59606.0,0.0008998]
[1724838096976,1.42429204,59607.0,59606.0,0.0008998]
[1724838097845,1.43429204,59607.0,59606.0,0.0008998]
[1724838098085,1.95159204,59607.0,59606.0,0.0008998]
[1724838098418,1.96359204,59607.0,59606.0,0.0008998]
[1724838098620,2.13214368,59607.0,59606.0,0.0008998]
[1724838099326,2.46767468,59607.0,59606.0,0.0008998]
[1724838099822,2.46767468,59607.0,59600.0,0.1001]
[1724838099823,1.706338,59601.0,59600.0,0.07820312]
[1724838100034,2.50179669,59601.0,59600.0,0.07820312]
[1724838100199,2.50950651,59601.0,59600.0,0.07820312]
[1724838100431,2.67805815,59601.0,59600.0,0.07820312]
[1724838100627,2.53581824,59601.0,59600.0,0.00882307]
[1724838100882,0.167827,59585.0,59584.0,0.50630766]
[1724838101308,0.167825,59586.0,59584.0,0.0008998]
[1724838101508,0.17553682,59585.0,59584.0,0.0008998]
[1724838102141,0.17653682,59585.0,59584.0,0.0008998]
[1724838103050,0.51319082,59585.0,59584.0,0.0008998]
[1724838105157,0.17753682,59585.0,59584.0,0.0008998]
[1724838106244,0.51319082,59585.0,59584.0,0.0008998]
[1724838106466,0.65289939,59585.0,59584.0,0.0008998]
[1724838106969,0.51319082,59585.0,59584.0,0.0008998]
[1724838107745,0.17753682,59585.0,59584.0,0.0008998]
[1724838111607,0.51319082,59585.0,59584.0,0.0008998]
[1724838112029,0.84884482,59585.0,59584.0,0.0008998]
[1724838112251,1.68779882,59585.0,59584.0,0.0008998]
[1724838112452,2.04130422,59585.0,59584.0,0.0008998]
[1724838112678,1.88429882,59585.0,59584.0,0.0008998]
[1724838112896,1.91729882,59585.0,59584.0,0.0008998]
[1724838113120,2.25295282,59585.0,59584.0,0.0008998]
[1724838113724,2.25195282,59585.0,59584.0,0.0008998]
[1724838113962,1.91629882,59585.0,59584.0,0.0008998]
[1724838114163,2.08485046,59585.0,59584.0,0.0008998]
[1724838114345,2.08585046,59585.0,59584.0,0.0008998]
[1724838114551,1.91629882,59585.0,59584.0,0.0008998]
[1724838114780,1.91529882,59585.0,59584.0,0.0008998]
[1724838115033,1.92729882,59585.0,59584.0,0.0008998]
[1724838115253,1.92129882,59585.0,59584.0,0.0008998]
[1724838115527,1.91529882,59585.0,59584.0,0.0008998]
[1724838115747,1.93329882,59585.0,59584.0,0.0008998]
[1724838116190,1.76547182,59585.0,59584.0,0.0008998]
[1724838116407,1.93329882,59585.0,59584.0,0.0008998]
[1724838117288,2.10185046,59585.0,59584.0,0.0008998]
[1724838118291,1.93329882,59585.0,59584.0,0.0008998]
[1724838119081,1.94912871,59585.0,59584.0,0.0008998]
[1724838119286,2.28478271,59585.0,59584.0,0.0008998]
[1724838119491,1.94912871,59585.0,59584.0,0.0008998]
[1724838119878,2.28478271,59585.0,59584.0,0.0008998]
[1724838120083,2.45333435,59585.0,59584.0,0.0008998]
[1724838125916,1.94912871,59585.0,59584.0,0.0008998]
[1724838126440,2.28478271,59585.0,59584.0,0.0008998]
[1724838127180,1.94912871,59585.0,59584.0,0.0008998]
[1724838129021,1.94912871,59585.0,59584.0,0.0005128]
[1724838130330,1.94994771,59585.0,59584.0,0.0005128]
[1724838131514,1.70461782,59585.0,59584.0,0.0005128]
[1724838132006,1.36896382,59585.0,59584.0,0.0005128]
[1724838132183,1.03330982,59585.0,59584.0,0.1979128]
[1724838132337,1.36896382,59585.0,59584.0,0.1119128]
[1724838132551,1.36896382,59585.0,59584.0,0.0005128]
[1724838132990,1.39082174,59585.0,59584.0,0.0005128]
[1724838133399,1.03330982,59585.0,59584.0,0.0005128]
[1724838135275,1.36896382,59585.0,59584.0,0.0005128]
[1724838135482,1.03330982,59585.0,59584.0,0.0005128]
[1724838135915,1.36896382,59585.0,59584.0,0.0005128]
[1724838136351,1.03330982,59585.0,59584.0,0.0005128]
[1724838136994,0.52982882,59585.0,59584.0,0.7030028]
[1724838137169,0.52982882,59585.0,59584.0,0.3673428]
[1724838137370,0.52982882,59585.0,59584.0,0.1995128]
[1724838137571,0.52982882,59585.0,59584.0,0.3673428]
[1724838137942,0.52082882,59585.0,59584.0,0.1995128]
[1724838138143,0.52182882,59585.0,59584.0,0.3673428]
[1724838138573,0.51282882,59585.0,59584.0,0.7030028]
[1724838138786,0.51282882,59585.0,59584.0,1.0386628]
[1724838139003,0.51482882,59585.0,59584.0,1.3743228]
[1724838139657,0.51282882,59585.0,59584.0,1.3743228]
[1724838140088,0.51282882,59585.0,59584.0,1.3753228]
[1724838140314,0.51182882,59585.0,59584.0,1.3753228]
[1724838140550,0.51182882,59585.0,59584.0,1.3743228]
[1724838140818,0.51282882,59585.0,59584.0,1.3763228]
[1724838142099,0.51382882,59585.0,59584.0,1.3773228]
[1724838145142,0.506119,59585.0,59584.0,1.3773228]
[1724838145342,0.51376385,59585.0,59584.0,1.3773228]
[1724838152458,0.51376385,59585.0,59584.0,1.0416628]
[1724838156664,0.506119,59585.0,59584.0,1.0416628]
[1724838157041,0.51379512,59585.0,59584.0,1.0416628]
[1724838159871,0.51379512,59585.0,59584.0,1.1416628]
[1724838162590,0.51379512,59585.0,59584.0,1.83090794]
[1724838162791,0.51379512,59585.0,59584.0,1.83590794]
[1724838163035,0.506119,59585.0,59584.0,1.85890794]
[1724838163410,0.51279512,59585.0,59584.0,1.85690794]
[1724838163748,0.505119,59585.0,59584.0,1.85690794]
[1724838163963,0.51379512,59585.0,59584.0,1.85790794]
[1724838164127,0.51279512,59585.0,59584.0,1.85690794]
[1724838164332,0.51379512,59585.0,59584.0,1.85790794]
[1724838164493,0.51279512,59585.0,59584.0,1.85690263]
[1724838164696,0.51379512,59585.0,59584.0,1.85790263]
[1724838164947,0.51379512,59585.0,59584.0,2.19356263]
[1724838165147,0.51379512,59585.0,59584.0,1.85790263]
[1724838165517,0.51379512,59585.0,59584.0,1.83490263]
[1724838166590,0.506119,59585.0,59584.0,1.83490263]
[1724838166742,0.51380775,59585.0,59584.0,2.17056263]
[1724838166952,0.51380775,59585.0,59584.0,1.83490263]
[1724838167605,0.506119,59585.0,59584.0,1.83490263]
[1724838167788,0.51380775,59585.0,59584.0,1.83490263]
[1724838167989,0.51380775,59585.0,59584.0,1.8349007]
[1724838168492,0.51380775,59585.0,59584.0,2.1705607]
[1724838168898,0.506119,59585.0,59584.0,1.8349007]
[1724838169271,0.51380775,59585.0,59584.0,1.8349007]
[1724838169878,0.51380775,59585.0,59584.0,1.83490199]
[1724838170219,0.51380775,59585.0,59584.0,2.17056199]
[1724838170540,0.51380775,59585.0,59584.0,1.83490199]
[1724838171174,0.506119,59585.0,59584.0,1.8169828]
[1724838171355,0.506119,59585.0,59584.0,1.83490592]
[1724838171852,0.506119,59585.0,59584.0,1.82990592]
[1724838172065,0.506119,59585.0,59584.0,1.94694283]
[1724838172283,0.51380775,59585.0,59584.0,1.94694283]
[1724838173337,0.51280775,59585.0,59584.0,1.94594283]
[1724838173532,0.51280775,59585.0,59584.0,2.02522083]
[1724838173827,0.51380775,59585.0,59584.0,2.03622083]
[1724838174577,0.51380775,59585.0,59584.0,2.03622391]
[1724838175135,0.51280775,59585.0,59584.0,2.02522391]
[1724838175431,0.51380775,59585.0,59584.0,2.03622391]
[1724838177544,0.51380775,59585.0,59584.0,2.08618097]
[1724838178938,0.51380775,59585.0,59584.0,1.63328591]
[1724838179312,0.51380775,59585.0,59584.0,1.68324297]
[1724838179904,0.51380775,59585.0,59584.0,1.63328591]
[1724838180361,0.51380775,59585.0,59584.0,0.19239606]
[1724838180591,0.62110775,59585.0,59584.0,0.6280028]
[1724838180805,0.62110775,59585.0,59584.0,0.9636628]
[1724838181017,0.62110775,59585.0,59584.0,0.6280028]
[1724838181234,0.62010775,59585.0,59584.0,0.6170028]
[1724838181409,0.61910775,59585.0,59584.0,0.9396628]
[1724838181608,0.62010775,59585.0,59584.0,0.9506628]
[1724838182805,0.62110775,59585.0,59584.0,1.34827986]
[1724838183078,0.61910775,59585.0,59584.0,1.2753228]
[1724838183423,0.61910775,59585.0,59584.0,1.2853228]
[1724838183424,0.62010775,59585.0,59584.0,1.2853228]
[1724838183630,0.62010775,59585.0,59584.0,1.33527986]
[1724838183631,0.62110775,59585.0,59584.0,1.33527986]
[1724838183842,0.51380775,59585.0,59584.0,1.2853228]
[1724838184050,0.51480775,59585.0,59584.0,1.34627986]
[1724838184819,0.51480775,59585.0,59584.0,1.37125839]
[1724838185037,0.51480775,59585.0,59584.0,2.20414502]
[1724838185244,0.51480775,59585.0,59584.0,2.32903767]
[1724838185482,0.51480775,59585.0,59584.0,2.20414502]
[1724838185687,0.507119,59585.0,59584.0,2.20414502]
[1724838186496,0.51481747,59585.0,59584.0,2.20414502]
[1724838186727,0.507119,59585.0,59584.0,2.20414502]
[1724838186917,0.51481747,59585.0,59584.0,2.20414502]
[1724838187070,0.507119,59585.0,59584.0,2.20414502]
[1724838187618,0.51481747,59585.0,59584.0,2.20414502]
[1724838187789,0.507119,59585.0,59584.0,2.20414502]
[1724838187970,0.51481747,59585.0,59584.0,2.20414502]
[1724838188350,0.507119,59585.0,59584.0,2.20414502]
[1724838188688,0.51481747,59585.0,59584.0,2.20414502]
[1724838188899,0.507119,59585.0,59584.0,2.20414502]
[1724838189098,0.51481747,59585.0,59584.0,2.20414502]
[1724838189305,0.507119,59585.0,59584.0,2.20414502]
[1724838189846,0.51481747,59585.0,59584.0,2.20414502]
[1724838190100,0.51481747,59585.0,59584.0,2.20410432]
[1724838190303,0.507119,59585.0,59584.0,2.21664048]
[1724838191287,0.507119,59585.0,59584.0,2.20410432]
[1724838191507,0.507119,59585.0,59584.0,2.21664023]
[1724838192678,0.507119,59585.0,59584.0,2.20410432]
[1724838192876,0.507119,59585.0,59584.0,2.21664088]
[1724838193080,0.507119,59585.0,59584.0,2.55230088]
[1724838194526,0.507119,59585.0,59584.0,2.53976432]
[1724838194732,0.507119,59585.0,59584.0,2.55230041]
[1724838194959,0.507119,59585.0,59584.0,2.55229404]
[1724838195325,0.507119,59585.0,59584.0,2.66933095]
[1724838198279,0.507119,59585.0,59584.0,2.65679486]
[1724838198403,0.507119,59585.0,59584.0,2.66933148]
[1724838198847,0.507119,59585.0,59584.0,2.13397148]
[1724838199810,0.507119,59585.0,59584.0,2.13397147]
[1724838201797,0.507119,59585.0,59584.0,2.12143485]
[1724838202561,0.507119,59585.0,59584.0,2.00439794]
[1724838202795,0.507119,59585.0,59584.0,2.12143485]
[1724838203436,0.691119,59585.0,59584.0,0.56175794]
[1724838203643,0.69881846,59585.0,59584.0,0.57509903]
[1724838204106,0.69881846,59585.0,59584.0,0.5250028]
[1724838204324,0.69881846,59585.0,59584.0,0.8606628]
[1724838205527,0.69881846,59585.0,59584.0,0.9606628]
[1724838213525,0.69881846,59585.0,59584.0,0.1893428]
[1724838213734,0.69881846,59585.0,59584.0,0.0215128]
[1724838214473,0.86664546,59585.0,59584.0,0.0215128]
[1724838214690,0.69881846,59585.0,59584.0,0.0215128]
[1724838217205,1.53795346,59585.0,59584.0,0.0215128]
[1724838217426,1.20229946,59585.0,59584.0,0.0215128]
[1724838218092,0.86664546,59585.0,59584.0,0.0215128]
[1724838218307,0.86464546,59585.0,59584.0,0.0105128]
[1724838218525,0.86564546,59585.0,59584.0,0.0195128]
[1724838218739,0.86464546,59585.0,59584.0,0.0095128]
[1724838219202,0.69681846,59585.0,59584.0,0.0095128]
[1724838219418,0.69781846,59585.0,59584.0,0.0165128]
[1724838220348,0.69781846,59585.0,59584.0,0.8556628]
[1724838220556,0.69781846,59585.0,59584.0,0.1843428]
[1724838223071,0.69781846,59585.0,59584.0,0.5200028]
[1724838226143,0.69781846,59585.0,59584.0,0.1843428]
[1724838226849,0.69781846,59585.0,59584.0,0.5200028]
[1724838227927,0.69781846,59585.0,59584.0,0.1843428]
[1724838229348,0.69781846,59585.0,59584.0,0.0165128]
[1724838230000,1.20129946,59585.0,59584.0,0.0165128]
[1724838230606,1.53695346,59585.0,59584.0,0.0165128]
[1724838230848,1.20129946,59585.0,59584.0,0.0165128]
[1724838231079,1.53695346,59585.0,59584.0,0.0165128]
[1724838231278,1.87260746,59585.0,59584.0,0.0165128]
[1724838231604,1.88260746,59585.0,59584.0,0.0165128]
[1724838232267,1.88260746,59585.0,59570.0,0.167867]
[1724838232268,0.01,59582.0,59570.0,0.167867]
[1724838232497,0.1925,59572.0,59569.0,0.51439486]
[1724838232636,0.5033,59571.0,59569.0,0.176857]
[1724838232839,0.5033,59571.0,59570.0,0.167869]
[1724838233244,0.51092694,59571.0,59570.0,0.167869]
[1724838233618,0.51092694,59571.0,59570.0,0.267869]
[1724838233807,0.51092694,59571.0,59570.0,0.603608]
[1724838234347,0.51292694,59571.0,59570.0,0.620608]
[1724838234630,0.51192694,59571.0,59570.0,0.611608]
[1724838234864,0.51092694,59571.0,59570.0,0.603608]
[1724838235088,0.51192694,59571.0,59570.0,0.612608]
[1724838235314,0.51292694,59571.0,59570.0,0.619608]
[1724838237533,0.53924599,59571.0,59570.0,0.619608]
[1724838240962,0.51292694,59571.0,59570.0,0.619608]
[1724838241401,0.51292694,59571.0,59570.0,0.955347]
[1724838244029,0.51292694,59571.0,59570.0,0.619608]
[1724838246522,0.70802694,59571.0,59570.0,0.619608]
[1724838246744,0.70802694,59571.0,59570.0,0.283869]
[1724838247462,0.73434621,59571.0,59570.0,0.283869]
[1724838247672,0.73434621,59571.0,59570.0,0.619608]
[1724838249735,0.73434621,59571.0,59570.0,0.6205078]
[1724838250342,0.73434621,59571.0,59570.0,0.2847688]
[1724838251021,0.73434621,59571.0,59570.0,0.6205078]
[1724838251022,0.70802694,59571.0,59570.0,0.6205078]
[1724838251450,0.70802694,59571.0,59570.0,0.5205078]
[1724838251640,0.70802694,59571.0,59570.0,0.1847688]
[1724838252723,0.70802694,59571.0,59570.0,0.5205078]
[1724838253336,0.51292694,59571.0,59570.0,0.8562468]
[1724838254096,1.53865894,59571.0,59570.0,0.0168998]
[1724838254515,1.87439194,59571.0,59570.0,0.0168998]
[1724838254828,1.87339194,59571.0,59570.0,0.0078998]
[1724838255028,1.53765894,59571.0,59570.0,0.0078998]
[1724838255229,0.69832694,59571.0,59570.0,0.0078998]
[1724838255452,0.69832694,59571.0,59570.0,0.0008998]
[1724838255453,0.69732694,59571.0,59570.0,0.0008998]
[1724838255670,0.86519294,59571.0,59570.0,0.0008998]
[1724838256013,0.81436385,59571.0,59570.0,0.0038998]
[1724838256226,0.98222985,59571.0,59570.0,0.0038998]
[1724838256754,0.98522985,59571.0,59570.0,0.0008998]
[1724838256959,0.61972694,59571.0,59570.0,0.0008998]
[1724838257181,0.61972694,59571.0,59570.0,0.1687688]
[1724838257418,0.65004781,59571.0,59570.0,0.0008998]
[1724838258280,0.81791381,59571.0,59570.0,0.0008998]
[1724838258499,0.65004781,59571.0,59570.0,0.0008998]
[1724838260156,0.62372694,59571.0,59570.0,0.0008998]
[1724838263196,0.51792694,59571.0,59570.0,0.0008998]
[1724838263400,0.54424763,59571.0,59570.0,0.0008998]
[1724838265304,1.04784663,59571.0,59570.0,0.0008998]
[1724838265539,0.71211363,59571.0,59570.0,0.0008998]
[1724838266505,0.68579294,59571.0,59570.0,0.0008998]
[1724838267843,1.02152594,59571.0,59570.0,0.0008998]
[1724838269571,1.04784698,59571.0,59570.0,0.0008998]
[1724838271859,1.38357998,59571.0,59570.0,0.0008998]
[1724838272527,1.35725894,59571.0,59570.0,0.0008998]
[1724838273219,1.47429585,59571.0,59570.0,0.0008998]
[1724838275152,1.13856285,59571.0,59570.0,0.0008998]
[1724838275604,1.16488375,59571.0,59570.0,0.0008998]
[1724838277268,0.54424784,59571.0,59570.0,0.0008998]
[1724838277812,0.71211384,59571.0,59570.0,0.0008998]
[1724838278011,0.70811384,59571.0,59570.0,0.0008998]
[1724838278413,0.51392694,59571.0,59570.0,0.0008998]
[1724838278618,0.68179294,59571.0,59570.0,0.0008998]
[1724838278823,0.67879294,59571.0,59570.0,0.0008998]
[1724838279033,0.51092694,59571.0,59570.0,0.0008998]
[1724838279426,0.67879294,59571.0,59570.0,0.0008998]
[1724838279632,0.51092694,59571.0,59570.0,0.0008998]
[1724838279809,0.51092694,59571.0,59570.0,0.1687688]
[1724838280024,1.35025894,59571.0,59570.0,0.0008998]
[1724838280254,0.67879294,59571.0,59570.0,0.0008998]
[1724838282377,0.67879294,59571.0,59570.0,0.0028998]
[1724838283054,1.01452594,59571.0,59570.0,0.0028998]
[1724838284688,0.51092694,59571.0,59570.0,0.8422468]
[1724838284920,0.51092694,59571.0,59570.0,0.6168078]
[1724838284921,0.53724748,59571.0,59570.0,0.6168078]
[1724838285149,0.53724748,59571.0,59570.0,0.7004078]
[1724838288154,0.53724748,59571.0,59570.0,0.0028998]
[1724838288354,0.65428439,59571.0,59570.0,0.1707688]
[1724838289912,0.62796385,59571.0,59570.0,0.1707688]
[1724838291654,0.62796385,59571.0,59570.0,0.5065078]
[1724838292282,0.51092694,59571.0,59570.0,0.5065078]
[1724838292949,0.51092694,59571.0,59570.0,0.0028998]
[1724838293238,0.62796385,59571.0,59570.0,0.0028998]
[1724838293443,0.79582985,59571.0,59570.0,0.0028998]
[1724838295643,1.14732856,59571.0,59570.0,0.0028998]
[1724838296068,0.81159556,59571.0,59570.0,0.0028998]
[1724838296332,1.14732856,59571.0,59570.0,0.0028998]
[1724838296534,0.81159556,59571.0,59570.0,0.0028998]
[1724838296746,0.99889556,59571.0,59570.0,0.0028998]
[1724838296918,1.33462856,59571.0,59570.0,0.0028998]
[1724838297952,1.55332465,59571.0,59570.0,0.0028998]
[1724838298165,1.67036156,59571.0,59570.0,0.0028998]
[1724838298946,1.33462856,59571.0,59570.0,0.0028998]
[1724838300186,1.67036156,59571.0,59570.0,0.0028998]
[1724838300466,1.33462856,59571.0,59570.0,0.0028998]
[1724838300851,1.67036156,59571.0,59570.0,0.0028998]
[1724838301360,1.33462856,59571.0,59570.0,0.0028998]
[1724838301576,1.33462856,59571.0,59570.0,0.1966998]
[1724838301577,0.52669265,59571.0,59570.0,0.1966998]
[1724838301904,0.52669265,59571.0,59570.0,0.3645688]
[1724838302104,0.52669265,59571.0,59570.0,0.7003078]
[1724838302602,0.52669265,59571.0,59570.0,0.3645688]
[1724838302836,0.52669265,59571.0,59570.0,0.7003078]
[1724838302837,0.51906571,59571.0,59570.0,0.7003078]
[1724838303346,0.52665598,59571.0,59570.0,0.7003078]
[1724838303952,0.51089027,59571.0,59570.0,1.3717858]
[1724838304713,0.51089027,59571.0,59570.0,1.4717858]
[1724838304915,0.51089027,59571.0,59570.0,1.4697858]
[1724838305142,0.51189027,59571.0,59570.0,1.4767858]
[1724838305350,0.51289027,59571.0,59570.0,1.4767858]
[1724838305589,0.51189027,59571.0,59570.0,1.4767858]
[1724838305830,0.51089027,59571.0,59570.0,1.4697858]
[1724838306049,0.51189027,59571.0,59570.0,1.4767858]
[1724838306278,0.51189027,59571.0,59570.0,1.49471472]
[1724838306490,0.51189027,59571.0,59570.0,1.4767858]
[1724838306889,0.51189027,59571.0,59570.0,1.49672009]
[1724838307124,0.51289027,59571.0,59570.0,1.49672009]
[1724838307341,0.51289027,59571.0,59570.0,1.4787858]
[1724838308274,0.51289027,59571.0,59570.0,1.49672186]
[1724838308543,0.51289027,59571.0,59570.0,1.4787858]
[1724838309449,0.5053,59571.0,59570.0,1.4787858]
[1724838309945,0.51288822,59571.0,59570.0,1.4787858]
[1724838311255,0.51288822,59571.0,59570.0,2.2622061]
[1724838311400,0.51288822,59571.0,59570.0,2.20499483]
[1724838311604,0.5053,59571.0,59570.0,2.20499483]
[1724838311870,0.5053,59571.0,59570.0,2.3302591]
[1724838312095,0.5043,59571.0,59570.0,2.3232591]